fUST/lending_fUST_20240812
["ID","MTS","AMOUNT","RATE_DAILY","PERIOD"]
[334691543,1723477637790,-500.0,0.00015804,2]
[334691544,1723477637812,-2065.65,0.00015804,2]
[334691545,1723477637835,-500.0,0.00015804,2]
[334691546,1723477637857,-502.58248645,0.00015804,2]
[334691547,1723477637880,-503.97228914,0.00015804,2]
[334691548,1723477637907,-500.0,0.00015804,2]
[334691549,1723477637929,-500.0,0.00015804,2]
[334691550,1723477637952,-500.0,0.00015804,2]
[334691551,1723477637976,-500.0,0.00015804,2]
[334691552,1723477637999,-672.77,0.00015804,2]
[334691553,1723477638022,-1209.36,0.00015804,2]
[334691554,1723477638045,-500.0,0.00015804,2]
[334691555,1723477638068,-2838.76,0.00015813,2]
[334691556,1723477638097,-1153.15,0.00015814,2]
[334691557,1723477638127,-6016.21,0.00015814,2]
[334691558,1723477638151,-409.24520863,0.00015814,2]
[334691559,1723477638173,-1543.06,0.00015814,2]
[334691560,1723477638196,-500.0,0.00015814,2]
[334691561,1723477638218,-151.0,0.00015814,2]
[334691562,1723477638241,-771.8,0.00015814,2]
[334691563,1723477638264,-538.45,0.00015814,2]
[334691564,1723477638288,-6062.95,0.00015814,2]
[334691565,1723477638311,-500.0,0.00015814,2]
[334691566,1723477638344,-937.51,0.00015814,2]
[334691567,1723477638368,-151.0,0.00015814,2]
[334691568,1723477638393,-500.0,0.00015814,2]
[334691569,1723477638415,-298.033078,0.00015814,2]
[334691570,1723477638439,-500.0,0.00015814,2]
[334691571,1723477638462,-1206.07,0.00015814,2]
[334691572,1723477638484,-151.0,0.00015814,2]
[334691573,1723477638506,-602.51,0.00015814,2]
[334691574,1723477638530,-2611.84,0.00015814,2]
[334691575,1723477638554,-719.54,0.00015814,2]
[334691576,1723477638585,-393.959259,0.00015814,2]
[334691577,1723477638610,-393.959259,0.00015814,2]
[334691578,1723477638633,-500.0,0.00015814,2]
[334691579,1723477638655,-3805.11,0.00015814,2]
[334691580,1723477638677,-500.0,0.00015814,2]
[334691581,1723477638704,-805.89,0.00015814,2]
[334691582,1723477638726,-1215.72,0.00015814,2]
[334691583,1723477638749,-500.0,0.00015814,2]
[334691584,1723477638773,-500.0,0.00015814,2]
[334691585,1723477638797,-574.86,0.00015814,2]
[334691586,1723477638821,-180.532013,0.00015814,2]
[334691587,1723477638858,-180.532013,0.00015814,2]
[334691588,1723477638881,-500.0,0.00015814,2]
[334691589,1723477638906,-572.656076,0.00015814,2]
[334691590,1723477638930,-720.6556295,0.00015814,2]
[334691591,1723477641097,-500.0,0.00015529,2]
[334691592,1723477641119,-500.0,0.00015529,2]
[334691593,1723477641145,-500.0,0.0001553,2]
[334691594,1723477641167,-500.0,0.0001553,2]
[334691595,1723477641188,-500.0,0.00015698,2]
[334691596,1723477641210,-500.0,0.00015803,2]
[334691597,1723477641232,-500.0,0.00015803,2]
[334691598,1723477641253,-500.0,0.00015804,2]
[334691599,1723477641275,-283.9643705,0.00015814,2]
[334691600,1723477641297,-572.656076,0.00015814,2]
[334691601,1723477641318,-687.949945,0.00015814,2]
[334691602,1723477641355,-150.91505608,0.00015814,2]
[334691603,1723477641377,-687.949945,0.00015814,2]
[334691604,1723477641398,-1218.21,0.00015814,2]
[334691605,1723477641420,-639.62,0.00015814,2]
[334691606,1723477641442,-3139.53,0.00015814,2]
[334691607,1723477641464,-263.724371,0.00015814,2]
[334691608,1723477641486,-151.0,0.00015814,2]
[334691609,1723477641507,-500.0,0.00015814,2]
[334691610,1723477641528,-263.724371,0.00015814,2]
[334691611,1723477641552,-1994.82,0.00015814,2]
[334691612,1723477641573,-9154.14516462,0.00015851,2]
[334691613,1723477641594,-1020.71977583,0.00015851,2]
[334691614,1723477641616,-150.112233,0.000159,2]
[334691615,1723477641638,-500.0,0.00015904,2]
[334691616,1723477641659,-151.0,0.00015913,2]
[334691617,1723477641681,-477.635504,0.00015913,2]
[334691618,1723477641702,-477.635504,0.00015913,2]
[334691619,1723477641724,-2838.76,0.00015913,2]
[334691620,1723477641745,-500.0,0.00015914,2]
[334691621,1723477641765,-500.0,0.00015914,2]
[334691622,1723477641786,-500.0,0.00015914,2]
[334691623,1723477641807,-500.0,0.00015914,2]
[334691624,1723477641827,-512.53553775,0.00015914,2]
[334691625,1723477641857,-500.0,0.00015914,2]
[334691626,1723477641880,-500.0,0.00015914,2]
[334691627,1723477641904,-500.0,0.00015914,2]
[334691628,1723477641924,-507.03722635,0.00015914,2]
[334691629,1723477641946,-500.0,0.00015914,2]
[334691630,1723477641966,-151.0,0.00015914,2]
[334691631,1723477641991,-502.30415664,0.00015914,2]
[334691632,1723477642014,-151.0,0.00015914,2]
[334691633,1723477642035,-151.0,0.00015914,2]
[334691634,1723477642057,-153.08066,0.00015914,2]
[334691635,1723477642083,-503.60825939,0.00015914,2]
[334691636,1723477642107,-501.90565031,0.00015914,2]
[334691637,1723477642128,-500.0,0.00015914,2]
[334691638,1723477642149,-1336.96,0.00015914,2]
[334691639,1723477642170,-500.0,0.00015914,2]
[334691640,1723477642192,-506.81009319,0.00015914,2]
[334691641,1723477642214,-500.0,0.00015914,2]
[334691642,1723477642236,-2838.76,0.00015914,2]
[334691643,1723477642260,-2838.76,0.00015914,2]
[334691644,1723477642283,-2838.76,0.00015914,2]
[334691645,1723477642307,-2838.76,0.00015914,2]
[334691646,1723477642337,-2838.96950651,0.00015914,2]
[334691647,1723477642359,-151.0,0.00015914,2]
[334691648,1723477642381,-413.764054,0.00015914,2]
[334691649,1723477642403,-413.764054,0.00015914,2]
[334691650,1723477642426,-500.0,0.00015914,2]
[334691651,1723477642448,-287.283186,0.00015915,2]
[334691652,1723477642471,-3090.72018399,0.00015952,2]
[334691653,1723477642494,-3090.72018399,0.00015952,2]
[334691654,1723477642516,-1164.02523181,0.00015952,2]
[334691655,1723477642539,-55434.59759481,0.00015953,2]
[334691656,1723477642560,-933.09765316,0.00015954,2]
[334691657,1723477642589,-850.24651816,0.00015954,2]
[334691658,1723477642612,-154.69833824,0.00015954,2]
[334691659,1723477642637,-318.07644,0.00015962,2]
[334691660,1723477642659,-318.07644,0.00015962,2]
[334691661,1723477642680,-500.36549665,0.00015969,2]
[334691662,1723477642701,-700.76,0.00015969,2]
[334691663,1723477642724,-500.0,0.00015969,2]
[334691664,1723477642747,-928.85,0.00015969,2]
[334691665,1723477642769,-503.9623298,0.00015969,2]
[334691666,1723477642792,-500.0,0.00015969,2]
[334691667,1723477642813,-500.0,0.00015969,2]
[334691668,1723477642844,-90.54877822,0.00015969,2]
[334691669,1723477642894,-500.0,0.0001553,2]
[334691670,1723477642921,-508.18122178,0.00015969,2]
[334691671,1723477642943,-500.0,0.00015969,2]
[334691672,1723477642965,-1395.29,0.00015969,2]
[334691673,1723477642987,-500.18536811,0.00015969,2]
[334691674,1723477643009,-1207.23,0.00015969,2]
[334691675,1723477643031,-163.37809937,0.00015969,2]
[334691676,1723477643052,-500.0,0.00015969,2]
[334691677,1723477643076,-500.0,0.00015969,2]
[334691678,1723477643106,-1819.56,0.00015969,2]
[334691679,1723477643127,-1064.74,0.00015969,2]
[334691680,1723477643148,-156.649056,0.00015969,2]
[334691681,1723477643170,-156.649056,0.00015969,2]
[334691682,1723477643346,-500.0,0.00015972,2]
[334691683,1723477643369,-573.85377433,0.00015972,2]
[334691684,1723477643389,-500.0,0.00015972,2]
[334691685,1723477643410,-500.0,0.00015972,2]
[334691686,1723477643430,-500.0,0.00015972,2]
[334691687,1723477643451,-500.0,0.00015972,2]
[334691688,1723477643474,-831.64,0.00015972,2]
[334691689,1723477643495,-500.0,0.00015972,2]
[334691690,1723477643516,-500.0,0.00015972,2]
[334691691,1723477643537,-500.0,0.00015972,2]
[334691692,1723477643558,-500.0,0.00015972,2]
[334691693,1723477643583,-500.0,0.00015972,2]
[334691694,1723477643610,-500.0,0.00015972,2]
[334691695,1723477643630,-500.0,0.00015972,2]
[334691696,1723477643652,-500.0,0.00015972,2]
[334691697,1723477643673,-500.0,0.00015972,2]
[334691698,1723477643694,-500.0,0.00015972,2]
[334691699,1723477643715,-472.37504085,0.00015972,2]
[334691700,1723477643737,-500.0,0.00015972,2]
[334691701,1723477643760,-500.0,0.00015972,2]
[334691702,1723477643780,-500.0,0.00015972,2]
[334691703,1723477643800,-651.66,0.00015972,2]
[334691704,1723477643820,-2910.2,0.00015972,2]
[334691705,1723477643849,-500.0,0.00015972,2]
[334691706,1723477643870,-715.91,0.00015972,2]
[334691707,1723477643892,-500.0,0.00015972,2]
[334691708,1723477643917,-523.12,0.00015972,2]
[334691709,1723477643938,-1163.85,0.00015972,2]
[334691710,1723477643960,-500.0,0.00015972,2]
[334691711,1723477643983,-500.0,0.00015972,2]
[334691712,1723477644005,-500.0,0.00015972,2]
[334691713,1723477644030,-500.0,0.00015972,2]
[334691714,1723477644051,-500.0,0.00015972,2]
[334691715,1723477644072,-500.0,0.00015972,2]
[334691716,1723477644099,-500.0,0.00015972,2]
[334691717,1723477644120,-500.0,0.00015972,2]
[334691718,1723477644141,-500.0,0.00015972,2]
[334691719,1723477644162,-500.0,0.00015972,2]
[334691720,1723477644182,-511.68645328,0.00015972,2]
[334691721,1723477644203,-500.0,0.00015972,2]
[334691722,1723477644225,-1203.23,0.00015972,2]
[334691723,1723477644246,-284.00825652,0.00015972,2]
[334691724,1723477644268,-500.0,0.00015972,2]
[334691725,1723477644291,-506.08398547,0.00015972,2]
[334691726,1723477644316,-1330.94,0.00015972,2]
[334691727,1723477644344,-500.0,0.00015972,2]
[334691728,1723477644365,-500.0,0.00015972,2]
[334691729,1723477644386,-500.0,0.00015972,2]
[334691730,1723477644407,-626.7,0.00015972,2]
[334691731,1723477644428,-521.12,0.00015972,2]
[334691732,1723477644449,-1279.6,0.00015972,2]
[334691733,1723477644471,-500.0,0.00015972,2]
[334691734,1723477644493,-500.0,0.00015972,2]
[334691735,1723477644513,-500.0,0.00015972,2]
[334691736,1723477644535,-500.0,0.00015972,2]
[334691737,1723477644557,-607.66,0.00015972,2]
[334691738,1723477644578,-807.72,0.00015972,2]
[334691739,1723477644608,-500.0,0.00015972,2]
[334691740,1723477644629,-506.07076068,0.00015972,2]
[334691741,1723477644650,-500.0,0.00015972,2]
[334691742,1723477644672,-500.0,0.00015972,2]
[334691743,1723477644692,-806.87,0.00015972,2]
[334691744,1723477644713,-500.0,0.00015972,2]
[334691745,1723477644742,-500.0,0.00015972,2]
[334691746,1723477644762,-500.0,0.00015972,2]
[334691747,1723477644783,-500.0,0.00015972,2]
[334691748,1723477644804,-500.0,0.00015972,2]
[334691749,1723477644824,-500.0,0.00015972,2]
[334691750,1723477644857,-500.0,0.00015972,2]
[334691751,1723477644880,-500.0,0.00015972,2]
[334691752,1723477644904,-503.56530414,0.00015972,2]
[334691753,1723477644925,-500.0,0.00015972,2]
[334691754,1723477644946,-832.37,0.00015972,2]
[334691755,1723477644967,-500.0,0.00015972,2]
[334691756,1723477644991,-505.34929325,0.00015972,2]
[334691757,1723477645013,-727.51,0.00015972,2]
[334691758,1723477645034,-503.97874758,0.00015972,2]
[334691759,1723477645054,-1010.31,0.00015972,2]
[334691760,1723477645077,-500.0,0.00015972,2]
[334691761,1723477645111,-500.0,0.00015972,2]
[334691762,1723477645132,-386.42793739,0.00015972,2]
[334691763,1723477645152,-500.0,0.00015972,2]
[334691764,1723477645174,-500.0,0.00015972,2]
[334691765,1723477645194,-500.0,0.00015972,2]
[334691766,1723477645215,-500.0,0.00015972,2]
[334691767,1723477645236,-500.0,0.00015972,2]
[334691768,1723477645257,-500.0,0.00015972,2]
[334691769,1723477645280,-500.0,0.00015972,2]
[334691770,1723477645303,-500.0,0.00015972,2]
[334691771,1723477645324,-545.30960326,0.00015972,2]
[334691772,1723477645353,-500.0,0.00015972,2]
[334691773,1723477645375,-500.0,0.00015972,2]
[334691774,1723477645396,-500.0,0.00015972,2]
[334691775,1723477645418,-500.0,0.00015972,2]
[334691776,1723477645438,-500.0,0.00015972,2]
[334691777,1723477645458,-500.0,0.00015972,2]
[334691778,1723477645480,-500.0,0.00015972,2]
[334691779,1723477645502,-279.88289901,0.00015972,2]
[334691780,1723477645523,-783.07,0.00015972,2]
[334691781,1723477645543,-577.60026551,0.00015972,2]
[334691782,1723477645566,-257.120067,0.00015972,2]
[334691783,1723477645594,-500.0,0.00015972,2]
[334691784,1723477645615,-500.0,0.00015972,2]
[334691785,1723477645636,-500.0,0.00015972,2]
[334691786,1723477645657,-435.90130151,0.00015972,2]
[334691787,1723477645678,-477.635504,0.00015972,2]
[334691788,1723477645699,-991.97,0.00015972,2]
[334691789,1723477645721,-477.635504,0.00015972,2]
[334691790,1723477645746,-500.0,0.00015972,2]
[334691791,1723477645767,-559.40120012,0.00015972,2]
[334691792,1723477645788,-991.28,0.00015972,2]
[334691793,1723477645812,-500.0,0.00015972,2]
[334691794,1723477645840,-500.0,0.00015972,2]
[334691795,1723477645862,-500.0,0.00015972,2]
[334691796,1723477645883,-500.0,0.00015972,2]
[334691797,1723477645907,-875.88,0.00015972,2]
[334691798,1723477645928,-562.90276193,0.00015972,2]
[334691799,1723477645951,-500.0,0.00015972,2]
[334691800,1723477645972,-500.0,0.00015972,2]
[334691801,1723477645994,-505.51406527,0.00015972,2]
[334691802,1723477646014,-500.0,0.00015972,2]
[334691803,1723477646035,-500.0,0.00015972,2]
[334691804,1723477646057,-151.0,0.00015972,2]
[334691805,1723477646080,-500.0,0.00015972,2]
[334691806,1723477646106,-500.0,0.00015972,2]
[334691807,1723477646126,-500.0,0.00015972,2]
[334691808,1723477646146,-701.33,0.00015972,2]
[334691809,1723477646167,-656.1,0.00015972,2]
[334691810,1723477646187,-151.0,0.00015972,2]
[334691811,1723477646208,-500.0,0.00015972,2]
[334691812,1723477646231,-500.0,0.00015972,2]
[334691813,1723477646253,-535.14,0.00015972,2]
[334691814,1723477646276,-1494.75,0.00015972,2]
[334691815,1723477646298,-393.959259,0.00015972,2]
[334691816,1723477646461,-500.0,0.00015972,2]
[334691817,1723477646484,-529.34,0.00015972,2]
[334691818,1723477646507,-500.0,0.00015972,2]
[334691819,1723477646529,-560.17,0.00015972,2]
[334691820,1723477646551,-1949.88,0.00015972,2]
[334691821,1723477646573,-500.0,0.00015972,2]
[334691822,1723477646595,-699.43,0.00015972,2]
[334691823,1723477646617,-593.45,0.00015972,2]
[334691824,1723477646639,-500.0,0.00015972,2]
[334691825,1723477646662,-180.532013,0.00015972,2]
[334691826,1723477646686,-621.77354407,0.00015972,2]
[334691827,1723477646709,-180.532013,0.00015972,2]
[334691828,1723477646733,-733.21,0.00015972,2]
[334691829,1723477646757,-500.0,0.00015972,2]
[334691830,1723477646778,-500.0,0.00015972,2]
[334691831,1723477646799,-500.0,0.00015972,2]
[334691832,1723477646820,-500.0,0.00015972,2]
[334691833,1723477646850,-572.656076,0.00015972,2]
[334691834,1723477646871,-500.0,0.00015972,2]
[334691835,1723477646894,-500.0,0.00015972,2]
[334691836,1723477646922,-572.656076,0.00015972,2]
[334691837,1723477646946,-687.949945,0.00015972,2]
[334691838,1723477646969,-384.23911903,0.00015972,2]
[334691839,1723477646994,-687.949945,0.00015972,2]
[334691840,1723477647017,-503.70916886,0.00015972,2]
[334691841,1723477647039,-263.724371,0.00015972,2]
[334691842,1723477647063,-151.0,0.00015972,2]
[334691843,1723477647094,-971.04,0.00015972,2]
[334691844,1723477647122,-263.724371,0.00015972,2]
[334691845,1723477647145,-608.87,0.00015972,2]
[334691846,1723477647168,-500.0,0.00015972,2]
[334691847,1723477647191,-643.61,0.00015972,2]
[334691848,1723477647212,-500.0,0.00015972,2]
[334691849,1723477647234,-950.28,0.00015972,2]
[334691850,1723477647257,-730.47,0.00015972,2]
[334691851,1723477647279,-1015.20771268,0.00015972,2]
[334691852,1723477647311,-351.03228732,0.00015972,2]
[334691853,1723477647340,-545.7691022,0.00015972,2]
[334691854,1723477647361,-826.23,0.00015972,2]
[334691855,1723477647383,-500.0,0.00015972,2]
[334691856,1723477647404,-522.5658529,0.00015972,2]
[334691857,1723477647424,-500.0,0.00015972,2]
[334691858,1723477647444,-1364.76856629,0.00016038,2]
[334691859,1723477647466,-806.88929846,0.00016038,2]
[334691860,1723477647487,-190.85060772,0.00016038,2]
[334691861,1723477647508,-494.73852133,0.00016038,2]
[334691862,1723477647530,-155.18167037,0.00016038,2]
[334691863,1723477647550,-494.73852133,0.00016038,2]
[334691864,1723477647572,-897.92379833,0.00016038,2]
[334691865,1723477647603,-316.094647,0.00016038,2]
[334691866,1723477647625,-151.0,0.00016038,2]
[334691867,1723477647647,-316.094647,0.00016038,2]
[334691868,1723477647669,-151.0,0.00016038,2]
[334691869,1723477647691,-502.81348,0.00016038,2]
[334691870,1723477647714,-502.81348,0.00016038,2]
[334691871,1723477647736,-200.0,0.00016073,2]
[334691872,1723477647756,-200.0,0.00016073,2]
[334691873,1723477647777,-163.91079768,0.00016073,2]
[334691874,1723477647806,-36.08920232,0.00016073,2]
[334691875,1723477647828,-200.0,0.00016073,2]
[334691876,1723477647856,-522.78,0.00016077,2]
[334691877,1723477647878,-2451.08,0.00016077,2]
[334691878,1723477647903,-500.0,0.00016077,2]
[334691879,1723477647925,-9323.84,0.00016077,2]
[334691880,1723477647946,-1005.17,0.00016077,2]
[334691881,1723477647969,-500.0,0.00016077,2]
[334691882,1723477647994,-533.56,0.00016077,2]
[334691883,1723477648014,-500.0,0.00016077,2]
[334691884,1723477648035,-1570.17,0.00016077,2]
[334691885,1723477648057,-500.0,0.00016077,2]
[334691886,1723477648082,-586.89075368,0.00016077,2]
[334691887,1723477648265,-403.02924632,0.00016077,2]
[334691888,1723477648287,-500.0,0.00016077,2]
[334691889,1723477648312,-500.0,0.00016077,2]
[334691890,1723477648339,-500.0,0.00016077,2]
[334691891,1723477648361,-6140.5,0.00016077,2]
[334691892,1723477648383,-1961.64,0.00016077,2]
[334691893,1723477648404,-1297.58,0.00016077,2]
[334691894,1723477648427,-500.0,0.00016077,2]
[334691895,1723477648450,-500.0,0.00016077,2]
[334691896,1723477648473,-500.0,0.00016077,2]
[334691897,1723477648496,-567.87,0.00016078,2]
[334691898,1723477648519,-1401.99,0.00016078,2]
[334691899,1723477648540,-890.0,0.00016078,2]
[334691900,1723477648562,-500.0,0.00016078,2]
[334691901,1723477648588,-500.0,0.00016078,2]
[334691902,1723477648609,-500.0,0.00016078,2]
[334691903,1723477648631,-990.82,0.00016078,2]
[334691904,1723477648654,-500.0,0.00016078,2]
[334691905,1723477648676,-500.0,0.00016078,2]
[334691906,1723477648698,-500.0,0.00016078,2]
[334691907,1723477648721,-887.8,0.00016078,2]
[334691908,1723477648743,-1076.44,0.00016078,2]
[334691909,1723477648767,-521.45,0.00016078,2]
[334691910,1723477648790,-500.0,0.00016078,2]
[334691911,1723477648811,-500.0,0.00016078,2]
[334691912,1723477648840,-1148.2,0.00016078,2]
[334691913,1723477648862,-1762.91,0.00016078,2]
[334691914,1723477648884,-625.0,0.00016078,2]
[334691915,1723477648910,-1833.71,0.00016078,2]
[334691916,1723477648932,-557.37,0.00016078,2]
[334691917,1723477648954,-772.32,0.00016078,2]
[334691918,1723477648975,-1254.45,0.00016078,2]
[334691919,1723477649001,-151.0,0.00016078,2]
[334691920,1723477649023,-1715.78,0.00016078,2]
[334691921,1723477649045,-1307.89,0.00016078,2]
[334691922,1723477649068,-8777.12,0.00016078,2]
[334691923,1723477649093,-584.21,0.00016078,2]
[334691924,1723477649114,-513.72,0.00016078,2]
[334691925,1723477649136,-500.0,0.00016078,2]
[334691926,1723477649158,-2703.2,0.00016078,2]
[334691927,1723477649181,-413.764054,0.00016078,2]
[334691928,1723477649204,-500.0,0.00016078,2]
[334691929,1723477649227,-413.764054,0.00016078,2]
[334691930,1723477649251,-1648.34,0.00016078,2]
[334691931,1723477649273,-1566.53,0.00016078,2]
[334691932,1723477649297,-1426.58,0.00016078,2]
[334691933,1723477649320,-638.85,0.00016078,2]
[334691934,1723477649348,-500.0,0.00016078,2]
[334691935,1723477649371,-856.41,0.00016078,2]
[334691936,1723477649536,-1004.82,0.00016078,2]
[334691937,1723477649560,-1139.17,0.00016078,2]
[334691938,1723477649588,-500.0,0.00016078,2]
[334691939,1723477649614,-500.0,0.00016078,2]
[334691940,1723477649635,-2065.65,0.00016078,2]
[334691941,1723477649656,-500.0,0.00016078,2]
[334691942,1723477649676,-500.0,0.00016078,2]
[334691943,1723477649698,-500.0,0.00016078,2]
[334691944,1723477649720,-500.0,0.00016078,2]
[334691945,1723477649741,-500.0,0.00016078,2]
[334691946,1723477649762,-672.77,0.00016078,2]
[334691947,1723477649784,-1209.36,0.00016078,2]
[334691948,1723477649807,-248.19649275,0.00016078,2]
[334691949,1723477650506,-500.0,0.00015529,2]
[334691950,1723477650529,-161.49,0.00015803,2]
[334691951,1723477650550,-251.80350725,0.00016078,2]
[334691952,1723477650571,-645.92,0.00016078,2]
[334691953,1723477650601,-151.0,0.00016088,2]
[334691954,1723477650622,-156.649056,0.00016088,2]
[334691955,1723477650646,-156.649056,0.00016088,2]
[334691956,1723477650679,-771.8,0.00016088,2]
[334691957,1723477650709,-6062.95,0.00016088,2]
[334691958,1723477650740,-500.0,0.00016088,2]
[334691959,1723477650770,-937.51,0.00016088,2]
[334691960,1723477650802,-500.0,0.00016088,2]
[334691961,1723477650838,-500.0,0.00016088,2]
[334691962,1723477650866,-1206.07,0.00016088,2]
[334691963,1723477650896,-602.51,0.00016088,2]
[334691964,1723477650927,-2611.84,0.00016088,2]
[334691965,1723477650954,-719.54,0.00016088,2]
[334691966,1723477650985,-500.0,0.00016088,2]
[334691967,1723477651014,-3805.11,0.00016088,2]
[334691968,1723477651046,-500.0,0.00016088,2]
[334691969,1723477651075,-805.89,0.00016088,2]
[334691970,1723477651104,-1215.72,0.00016088,2]
[334691971,1723477651135,-532.3408573,0.00016088,2]
[334691972,1723477651163,-500.0,0.00016088,2]
[334691973,1723477651192,-574.86,0.00016088,2]
[334691974,1723477651221,-500.0,0.00016088,2]
[334691975,1723477651248,-1004.62,0.00016088,2]
[334691976,1723477651275,-1218.21,0.00016088,2]
[334691977,1723477651299,-639.62,0.00016088,2]
[334691978,1723477651325,-3139.53,0.00016088,2]
[334691979,1723477651361,-500.0,0.00016088,2]
[334691980,1723477651386,-1994.82,0.00016088,2]
[334691981,1723477651413,-180.532013,0.00016095,2]
[334691982,1723477651439,-180.532013,0.00016095,2]
[334691983,1723477651464,-913.41210079,0.00016095,2]
[334691984,1723477651489,-572.656076,0.00016095,2]
[334691985,1723477651515,-572.656076,0.00016095,2]
[334691986,1723477651541,-687.949945,0.00016095,2]
[334691987,1723477651568,-472.16146,0.00016095,2]
[334691988,1723477651594,-687.949945,0.00016095,2]
[334691989,1723477651621,-263.724371,0.00016095,2]
[334691990,1723477651648,-151.0,0.00016095,2]
[334691991,1723477651673,-263.724371,0.00016095,2]
[334691992,1723477651698,-813.18375468,0.00016095,2]
[334691993,1723477651724,-601.42805892,0.00016095,2]
[334691994,1723477651750,-159.40070578,0.00016095,2]
[334691995,1723477651776,-990.107634,0.00016095,2]
[334691996,1723477651802,-210.07711325,0.00016095,2]
[334691997,1723477651828,-165.71411466,0.0001611,2]
[334691998,1723477651863,-342.39119771,0.0001611,2]
[334691999,1723477651888,-414.33663194,0.0001611,2]
[334692000,1723477651916,-20780.14466348,0.0001611,2]
[334692001,1723477651942,-555.00322272,0.00016178,2]
[334692002,1723477651969,-151.0,0.00016179,2]
[334692003,1723477652000,-318.07644,0.00016179,2]
[334692004,1723477652028,-318.07644,0.00016179,2]
[334692005,1723477652051,-523.76271671,0.00016188,2]
[334692006,1723477652072,-500.0,0.00016188,2]
[334692007,1723477652096,-500.0,0.00016188,2]
[334692008,1723477652118,-500.0,0.00016188,2]
[334692009,1723477652139,-500.0,0.00016188,2]
[334692010,1723477652161,-500.0,0.00016188,2]
[334692011,1723477652181,-500.0,0.00016188,2]
[334692012,1723477652202,-1336.96,0.00016188,2]
[334692013,1723477652222,-500.0,0.00016188,2]
[334692014,1723477652242,-151.0,0.00016188,2]
[334692015,1723477652265,-500.0,0.00016188,2]
[334692016,1723477652286,-151.0,0.00016188,2]
[334692017,1723477652544,-613.05221837,0.00016188,2]
[334692018,1723477652576,-150.112233,0.000162,2]
[334692019,1723477652600,-700.76,0.00016243,2]
[334692020,1723477652621,-500.0,0.00016243,2]
[334692021,1723477652643,-928.85,0.00016243,2]
[334692022,1723477652663,-500.0,0.00016243,2]
[334692023,1723477652684,-500.0,0.00016243,2]
[334692024,1723477652706,-598.73,0.00016243,2]
[334692025,1723477652728,-500.0,0.00016243,2]
[334692026,1723477652749,-1395.29,0.00016243,2]
[334692027,1723477652770,-1207.23,0.00016243,2]
[334692028,1723477652791,-500.0,0.00016243,2]
[334692029,1723477652811,-500.0,0.00016243,2]
[334692030,1723477652836,-1819.56,0.00016243,2]
[334692031,1723477652858,-1064.74,0.00016243,2]
[334692032,1723477652879,-477.635504,0.00016243,2]
[334692033,1723477652903,-477.635504,0.00016243,2]
[334692034,1723477652928,-500.0,0.00016246,2]
[334692035,1723477652948,-625.65507654,0.00016246,2]
[334692036,1723477652969,-500.0,0.00016246,2]
[334692037,1723477652991,-500.0,0.00016246,2]
[334692038,1723477653013,-323.33109887,0.00016246,2]
[334692039,1723477653035,-831.64,0.00016246,2]
[334692040,1723477653056,-552.1964244,0.00016246,2]
[334692041,1723477653077,-500.0,0.00016246,2]
[334692042,1723477653109,-500.0,0.00016246,2]